bitfinex/quotes_ETHUSD_20241030
["timestamp","ask_amount","ask_price","bid_price","bid_amount"]
[1730263729458,7.57211,2641.3,2641.0,1.30563498]
[1730263729459,3.78601,2641.3,2641.0,1.30563498]
[1730263729625,3.78591,2641.4,2641.0,1.30563498]
[1730263731227,3.78591,2641.4,2641.0,0.7707]
[1730263731618,3.78581,2641.5,2641.0,0.7707]
[1730263731822,3.78554,2641.7,2641.2,4.54906]
[1730263732024,0.753,2642.1,2641.3,6.03170552]
[1730263732242,3.78501,2642.0,2641.3,6.03170552]
[1730263732574,7.57068,2641.8,2641.3,6.03170552]
[1730263732725,3.78544,2641.7,2641.3,7.09269805]
[1730263733250,3.78544,2641.7,2641.3,3.30676805]
[1730263735088,3.78544,2641.7,2641.3,1.82399253]
[1730263743393,3.78544,2641.7,2641.3,0.763]
[1730263745400,7.57097,2641.7,2641.3,0.763]
[1730263745605,3.78544,2641.7,2641.3,0.763]
[1730263746405,3.7853,2641.8,2641.3,0.763]
[1730263746722,7.5705,2641.9,2641.4,0.7616]
[1730263747002,3.78523,2641.9,2641.4,0.7616]
[1730263747419,3.78531,2641.8,2641.4,0.7616]
[1730263747707,1.48277552,2642.0,2641.4,0.7616]
[1730263747910,3.78559,2641.6,2641.4,0.7616]
[1730263748568,7.57125,2641.6,2641.4,0.7616]
[1730263748776,3.78559,2641.6,2641.4,0.7616]
[1730263749882,3.78559,2641.6,2641.2,0.7616]
[1730263750084,3.7858,2641.5,2641.2,0.7616]
[1730263751088,3.78592,2641.4,2641.2,0.7616]
[1730263751472,3.78592,2641.4,2641.0,0.7616]
[1730263751873,3.7858,2641.5,2641.0,0.7616]
[1730263752073,7.57165,2641.5,2641.0,4.54802]
[1730263752687,3.7858,2641.5,2641.0,4.54802]
[1730263753606,3.7858,2641.5,2641.0,0.7616]
[1730263753974,3.78597,2641.4,2641.0,0.7616]
[1730263766966,3.78597,2641.4,2641.0,1.5535298]
[1730263768686,3.78597,2641.4,2641.0,0.7616]
[1730263769391,6.10336452,2641.4,2641.0,0.7616]
[1730263769558,3.78625,2641.2,2640.8,0.7616]
[1730263769757,3.78637,2641.1,2640.8,0.7616]
[1730263770076,3.78646,2641.0,2640.8,0.7616]
[1730263770452,3.78646,2641.0,2640.6,1.48277552]
[1730263770453,3.78646,2641.0,2640.6,0.7519]
[1730263772759,3.78661,2640.9,2640.6,0.7519]
[1730263772967,3.78686,2640.8,2640.6,0.7519]
[1730263773251,3.78686,2640.8,2640.5,1.44545851]
[1730263775549,4.59091,2640.9,2640.5,1.44545851]
[1730263775748,3.78661,2640.9,2640.5,1.44545851]
[1730263775993,3.78661,2640.9,2640.6,1.48277552]
[1730263776173,3.78649,2641.0,2640.6,1.48277552]
[1730263776380,3.78649,2641.0,2640.7,0.7519]
[1730263778762,3.78618,2641.2,2640.8,1.48277552]
[1730263780367,7.57245,2641.2,2640.8,1.48277552]
[1730263781285,3.78618,2641.2,2640.9,0.7519]
[1730263781481,7.57245,2641.2,2640.9,0.7519]
[1730263782090,3.78631,2641.1,2640.9,0.7519]
[1730263783230,3.78618,2641.2,2640.9,0.7519]
[1730263784422,3.78631,2641.1,2640.9,0.7519]
[1730263785521,3.78618,2641.2,2640.9,0.7519]
[1730263786016,3.78636,2641.1,2640.9,0.7519]
[1730263788280,3.78632,2641.1,2640.9,0.7519]
[1730263794179,3.78632,2641.1,2640.7,0.7745]
[1730263795313,3.7863,2641.1,2640.7,0.7745]
[1730263798949,3.78618,2641.2,2640.7,0.7745]
[1730263799155,3.78651,2641.0,2640.6,0.79363088]
[1730263799330,3.78651,2641.0,2640.5,8.28340491]
[1730263804459,3.78651,2641.0,2640.6,0.79363088]
[1730263804819,3.78651,2641.0,2640.5,8.28340491]
[1730263805253,3.78651,2641.0,2640.6,0.79363088]
[1730263805555,3.78651,2641.0,2640.6,4.58063088]
[1730263806058,3.78651,2641.0,2640.6,0.79363088]
[1730263806652,7.57307,2641.0,2640.6,0.79363088]
[1730263807017,3.78651,2641.0,2640.6,0.79363088]
[1730263808369,3.78651,2641.0,2640.5,8.28350491]
[1730263808570,3.78651,2641.0,2640.6,0.79363088]
[1730263808771,7.57306,2641.0,2640.5,5.98120521]
[1730263809075,0.8286,2641.1,2640.5,3.01358939]
[1730263809076,3.78683,2640.8,2640.5,3.01358939]
[1730263809974,3.78668,2640.9,2640.5,3.01358939]
[1730263810133,7.57338,2640.9,2640.5,3.01358939]
[1730263810531,3.78676,2640.8,2640.5,3.01358939]
[1730263813655,3.78676,2640.8,2640.5,2.23908939]
[1730263813656,0.7984,2640.7,2640.5,2.23908939]
[1730263813858,4.58528,2640.7,2640.5,1.44545851]
[1730263814563,4.58528,2640.7,2640.5,2.23908939]
[1730263815454,0.7984,2640.7,2640.5,2.23908939]
[1730263815872,4.59968,2640.9,2640.5,2.23908939]
[1730263816060,4.59968,2640.9,2640.5,3.05758939]
[1730263816469,8.38637,2640.9,2640.5,3.05758939]
[1730263816784,4.59968,2640.9,2640.5,3.05758939]
[1730263817483,8.38637,2640.9,2640.5,3.05758939]
[1730263819397,3.78688,2640.7,2640.5,3.05758939]
[1730263819689,3.78673,2640.8,2640.5,3.05758939]
[1730263820292,3.78673,2640.8,2640.5,2.26395851]
[1730263830094,3.78688,2640.7,2640.5,2.26395851]
[1730263830638,3.78688,2640.7,2640.5,1.44545851]
[1730263831021,4.59968,2640.9,2640.5,1.44545851]
[1730263831622,3.78674,2640.8,2640.5,1.44545851]
[1730263845522,3.78674,2640.8,2640.5,2.24018558]
[1730263846761,3.78674,2640.8,2640.6,0.8024]
[1730263848261,3.78668,2640.9,2640.6,0.8024]
[1730263848425,3.78677,2640.8,2640.6,0.8024]
[1730263851573,0.8117,2641.6,2640.8,0.8024]
[1730263851729,0.39538806,2642.2,2641.3,1.48277552]
[1730263851730,3.78545,2641.7,2641.3,1.48277552]
[1730263851933,3.7851,2642.0,2641.6,0.8024]
[1730263852152,3.78496,2642.1,2641.6,0.8024]
[1730263852153,1.22971381,2642.2,2641.7,1.48277552]
[1730263852343,4.59608,2642.5,2641.9,1.48277552]
[1730263852547,4.59608,2642.5,2641.4,3.46409061]
[1730263852548,3.78463,2642.3,2642.1,2.28517552]
[1730263852771,3.78463,2642.3,2642.1,0.8024]
[1730263862097,3.78463,2642.3,2641.5,11.16565]
[1730263862098,3.78495,2642.1,2641.6,2.30607552]
[1730263862297,3.78495,2642.1,2641.6,3.42264052]
[1730263863508,3.78495,2642.1,2641.6,1.939865]
[1730263863859,3.78495,2642.1,2641.6,7.20821052]
[1730263864505,3.78518,2641.9,2641.6,0.8233]
[1730263864794,3.78537,2641.8,2641.6,0.8233]
[1730263865160,3.78537,2641.8,2641.5,7.38]
[1730263865161,3.78544,2641.7,2641.5,7.38]
[1730263865369,3.78558,2641.6,2641.5,7.38]
[1730263865901,3.78558,2641.6,2640.9,3.78654]
[1730263865902,3.78631,2641.1,2640.9,0.8233]
[1730263866308,7.57269,2641.1,2640.9,0.8233]
[1730263866465,3.78631,2641.1,2640.9,0.8233]
[1730263868189,7.5727,2641.1,2640.9,0.8233]
[1730263868498,7.5727,2641.1,2640.7,2.30607552]
[1730263868499,4.54358,2641.1,2640.7,2.30607552]
[1730263868798,4.54358,2641.1,2640.7,0.8233]
[1730263868799,3.78657,2641.0,2640.7,0.8233]
[1730263869119,3.78673,2640.8,2640.5,2.30607552]
[1730263869809,7.57335,2640.9,2640.5,2.30607552]
[1730263870422,7.57334,2640.9,2640.5,2.30607552]
[1730263870624,3.78667,2640.9,2640.5,2.30607552]
[1730263872594,3.78667,2640.9,2640.5,0.8233]
[1730263872810,3.78667,2640.9,2640.5,2.30607552]
[1730263873448,3.78667,2640.9,2640.5,0.8233]
[1730263873611,3.78667,2640.9,2640.5,2.30607552]
[1730263873811,3.78645,2641.0,2640.5,6.09315552]
[1730263874142,3.78639,2641.1,2640.7,1.48277552]
[1730263874500,3.78621,2641.2,2640.7,5.26963552]
[1730263874709,3.78621,2641.2,2640.7,3.78686]
[1730263875009,3.78621,2641.2,2640.8,1.48277552]
[1730263876042,3.78603,2641.3,2640.8,1.48277552]
[1730263876228,3.78633,2641.1,2640.8,1.48277552]
[1730263876613,7.57275,2641.1,2640.8,1.48277552]
[1730263877322,3.78633,2641.1,2640.8,1.48277552]
[1730263877941,3.78633,2641.1,2640.9,0.8233]
[1730263878348,7.57271,2641.1,2640.9,0.8233]
[1730263878643,3.78633,2641.1,2640.9,0.8233]
[1730263879446,7.57272,2641.1,2640.9,0.8233]
[1730263879829,7.52272,2641.1,2640.9,0.8233]
[1730263880762,3.73633,2641.1,2640.9,0.8233]
[1730263881324,7.52277,2641.1,2640.9,0.8233]
[1730263881548,3.78644,2641.0,2640.9,0.8233]
[1730263881938,3.78644,2641.0,2640.6,0.8233]
[1730263886230,3.78644,2641.0,2640.6,1.9330482]
[1730263887971,3.78644,2641.0,2640.6,1.1097482]
[1730263888277,0.8245,2640.9,2640.6,1.1097482]
[1730263889085,3.78644,2641.0,2640.6,1.1097482]
[1730263889266,3.78644,2641.0,2640.5,3.78706]
[1730263891251,4.6108,2641.1,2640.6,1.48277552]
[1730263891613,3.78645,2641.0,2640.6,1.48277552]
[1730263893680,3.78645,2641.0,2640.4,0.8233]
[1730263893980,3.78644,2641.0,2640.4,0.8233]
[1730263894163,3.78673,2640.8,2640.4,2.30607552]
[1730263894338,3.78644,2641.0,2640.5,3.78703]
[1730263895177,7.57298,2641.0,2640.5,3.78703]
[1730263895417,3.78644,2641.0,2640.5,3.78703]
[1730263896055,7.57296,2641.0,2640.5,3.78703]
[1730263896348,3.78661,2640.9,2640.4,7.22723052]
[1730263896541,3.78677,2640.8,2640.4,7.22723052]
[1730263904943,0.7769,2640.7,2640.4,2.61663052]
[1730263905296,0.7769,2640.7,2640.4,1.133855]
[1730263905515,0.7769,2640.7,2640.4,1.48277552]
[1730263908138,4.5638,2640.7,2640.4,1.48277552]
[1730263908360,4.5638,2640.7,2640.3,1.45746451]
[1730263908361,3.7871,2640.6,2640.3,1.45746451]
[1730263908666,0.7769,2640.7,2640.3,1.45746451]
[1730263908667,4.56377,2640.7,2640.3,1.45746451]
[1730263908870,0.7769,2640.7,2640.3,1.45746451]
[1730263909073,0.7769,2640.7,2640.3,2.94024003]
[1730263909364,4.56377,2640.7,2640.3,6.72768003]
[1730263910238,4.56377,2640.7,2640.3,2.94024003]
[1730263910540,4.56377,2640.7,2640.3,3.73500119]
[1730263910862,0.7769,2640.7,2640.3,7.52242119]
[1730263911024,0.7769,2640.7,2640.3,8.33522119]
[1730263911557,3.78675,2640.8,2640.3,8.33522119]
[1730263911866,3.78675,2640.8,2640.4,0.79476116]
[1730263912025,3.78676,2640.8,2640.4,0.79476116]
[1730263915409,4.58509,2640.9,2640.4,0.79476116]
[1730263915811,4.58509,2640.9,2640.5,2.27753668]
[1730263916102,3.78659,2640.9,2640.6,0.8128]
[1730263916762,4.58485,2641.1,2640.7,1.48277552]
[1730263917162,3.78646,2641.0,2640.7,1.48277552]
[1730263919116,4.5848,2641.1,2640.7,2.27753668]
[1730263919287,8.37118,2641.1,2640.7,2.27753668]
[1730263919490,4.5848,2641.1,2640.7,1.48277552]
[1730263921832,8.37124,2641.1,2640.7,1.48277552]
[1730263922415,0.7985,2641.1,2640.7,1.48277552]
[1730263922623,4.58481,2641.1,2640.7,6.07657225]
[1730263923232,4.58481,2641.1,2640.7,6.87133341]
[1730263923976,4.58481,2641.1,2640.7,3.08447341]
[1730263924215,8.37121,2641.1,2640.7,3.08447341]
[1730263924527,3.78646,2641.0,2640.7,0.79476116]
[1730263925220,3.78646,2641.0,2640.6,1.60756116]
[1730263925828,3.78646,2641.0,2640.6,5.39457116]
[1730263926031,0.7985,2641.1,2640.6,5.39457116]
[1730263926530,0.7985,2641.1,2640.7,0.79476116]
[1730263926892,4.58483,2641.1,2640.7,0.79476116]
[1730263929087,4.58483,2641.1,2640.6,5.39457116]
[1730263929350,4.58483,2641.1,2640.7,0.79476116]
[1730263931076,0.7985,2641.1,2640.7,4.58162116]
[1730263931774,4.5848,2641.1,2640.7,0.79476116]
[1730263932873,0.7985,2641.1,2640.7,0.79476116]
[1730263933108,0.7985,2641.1,2640.7,2.27753668]
[1730263933234,0.7985,2641.1,2640.9,5.26933552]
[1730263933665,0.7985,2641.1,2640.9,6.06409668]
[1730263933848,0.7985,2641.1,2640.9,5.26933552]
[1730263935390,0.7985,2641.1,2640.9,6.06409668]
[1730263935585,3.78597,2641.4,2640.9,6.06409668]
[1730263935790,3.78597,2641.4,2640.9,7.22821501]
[1730263936496,3.78597,2641.4,2640.9,11.01468501]
[1730263936645,3.78597,2641.4,2640.9,7.22812501]
[1730263936875,3.78576,2641.5,2641.0,3.78643]
[1730263937814,3.78565,2641.6,2640.9,6.43336385]
[1730263938120,3.78587,2641.4,2640.9,6.43336385]
[1730263938287,3.78587,2641.4,2641.0,4.5690761]
[1730263938495,3.78565,2641.6,2641.0,4.5690761]
[1730263938696,3.78573,2641.5,2641.0,4.5690761]
[1730263938893,3.78565,2641.6,2641.0,4.5690761]
[1730263939083,7.57133,2641.6,2641.0,5.36383726]
[1730263939300,7.57133,2641.6,2641.1,1.17972011]
[1730263939520,3.78574,2641.5,2641.1,1.17972011]
[1730263940045,1.48277552,2641.2,2640.8,0.79476116]
[1730263940241,3.78667,2640.9,2640.4,1.84329229]
[1730263940403,3.78674,2640.8,2640.4,1.84329229]
[1730263940605,3.78674,2640.8,2640.5,0.26380535]
[1730263941042,3.78674,2640.8,2640.3,1.48277552]
[1730263942243,3.78687,2640.7,2640.3,1.48277552]
[1730263943645,3.78687,2640.7,2640.2,0.79476116]
[1730263943805,3.78717,2640.5,2640.2,2.27753668]
[1730263944006,3.78711,2640.6,2640.2,2.27753668]
[1730263944232,3.78711,2640.6,2640.3,0.22775367]
[1730263945142,3.78718,2640.5,2640.3,0.22775367]
[1730263951162,4.23,2641.6,2640.4,1.48277552]
[1730263951364,3.78639,2641.1,2640.6,1.48277552]
[1730263952069,3.78639,2641.1,2640.6,2.08924419]
[1730263953162,3.78646,2641.0,2640.6,2.08924419]
[1730263954134,7.57301,2641.0,2640.6,2.08924419]
[1730263955743,3.78646,2641.0,2640.6,2.08924419]
[1730263955944,7.57299,2641.0,2640.6,2.08924419]
[1730263956268,7.57299,2641.0,2640.7,0.58763242]
[1730263956967,3.78646,2641.0,2640.7,0.58763242]
[1730263957366,3.78625,2641.2,2640.8,1.48277552]
[1730263957667,3.78617,2641.2,2640.8,1.48277552]
[1730263961039,7.5724,2641.2,2640.8,1.48277552]
[1730263961245,3.78617,2641.2,2640.8,2.52668143]
[1730263961479,3.78667,2640.9,2640.5,0.79476116]
[1730263961677,3.78667,2640.9,2640.4,6.06476668]
[1730263962345,3.78667,2640.9,2640.4,5.27000552]
[1730263964789,3.78667,2640.9,2640.4,5.26999552]
[1730263964996,3.78667,2640.9,2640.5,2.11202656]
[1730263967365,3.7864,2641.1,2640.5,2.11202656]
[1730263967693,3.78645,2641.0,2640.5,5.89916656]
[1730263968276,3.78645,2641.0,2640.5,6.69392772]
[1730263968675,3.78645,2641.0,2640.5,5.89916656]
[1730263968879,3.78645,2641.0,2640.6,1.04811477]
[1730263969288,3.78645,2641.0,2640.7,0.7506]
[1730263971221,3.7866,2640.9,2640.7,0.7506]
[1730263971716,3.78645,2641.0,2640.7,0.7506]
[1730263986215,3.7867,2640.9,2640.7,0.7506]
[1730263990108,3.78643,2641.1,2640.7,0.7506]
[1730263990502,3.78628,2641.2,2640.8,0.8299]
[1730263990703,7.57192,2641.4,2640.9,0.8299]
[1730263991009,3.78602,2641.3,2640.9,0.8299]
[1730263991208,7.57187,2641.4,2640.9,0.8299]
[1730263992122,3.78603,2641.3,2640.9,0.8299]
[1730263993358,3.78591,2641.4,2640.9,0.8299]
[1730263993577,7.5719,2641.4,2640.9,0.8299]
[1730263994138,3.78601,2641.3,2640.9,0.8299]
[1730263994520,3.78601,2641.3,2640.9,2.31267552]
[1730263996765,7.5721,2641.3,2640.9,2.31267552]
[1730263997525,3.78601,2641.3,2640.9,2.31267552]
[1730263998632,7.57212,2641.3,2640.9,2.31267552]
[1730263999573,3.78601,2641.3,2640.9,2.31267552]
[1730263999868,3.78601,2641.3,2641.0,0.8299]
[1730264000068,3.78624,2641.2,2641.0,0.8299]
[1730264000240,3.7863,2641.1,2641.0,0.8299]
[1730264000437,3.7863,2641.1,2640.6,1.62466116]
[1730264000438,3.78651,2641.0,2640.6,1.62466116]
[1730264000882,3.78675,2640.8,2640.6,0.8299]
[1730264001045,0.757254,2641.1,2640.3,0.79476116]
[1730264001046,3.7871,2640.6,2640.3,0.79476116]
[1730264001248,3.78687,2640.7,2640.3,0.79476116]
[1730264001249,3.78687,2640.7,2640.3,2.27753668]
[1730264001447,3.78704,2640.6,2640.3,2.27753668]
[1730264002552,3.78687,2640.7,2640.3,2.27753668]
[1730264002789,7.57386,2640.7,2640.3,2.27753668]
[1730264003091,7.57385,2640.7,2640.3,2.27753668]
[1730264003454,3.78687,2640.7,2640.3,2.27753668]
[1730264003668,3.7868,2640.8,2640.4,1.62466116]
[1730264003876,3.7868,2640.8,2640.4,0.8299]
[1730264006074,3.78687,2640.7,2640.4,0.8299]
[1730264009704,3.78687,2640.7,2640.4,2.31267552]
[1730264011000,0.7788,2640.8,2640.4,2.31267552]
[1730264011172,4.56553,2640.8,2640.4,2.31267552]
[1730264013300,3.78687,2640.7,2640.4,0.8299]
[1730264018008,0.7788,2640.8,2640.4,0.8299]
[1730264018211,4.5656,2640.8,2640.4,0.8299]
[1730264018396,3.7868,2640.8,2640.4,0.8299]
[1730264018715,0.833076,2640.8,2640.2,0.79476116]
[1730264018925,3.78711,2640.6,2640.2,1.54866116]
[1730264021397,3.78711,2640.6,2640.2,0.7539]
[1730264021809,3.78727,2640.5,2640.2,0.7539]
[1730264029488,3.78737,2640.4,2640.1,0.7681]
[1730264037902,3.78748,2640.3,2640.1,0.7681]
[1730264040942,3.78717,2640.5,2640.1,0.7681]
[1730264042532,3.78717,2640.5,2640.1,4.5558]
[1730264042707,3.78717,2640.5,2640.1,5.5441364]
[1730264043193,3.78717,2640.5,2640.1,1.7564364]
[1730264043397,3.78717,2640.5,2640.2,0.7563]
[1730264043800,4.54707,2640.5,2640.0,0.81310852]
[1730264044811,3.78739,2640.4,2640.0,0.81310852]
[1730264050336,1.48277552,2640.3,2640.0,0.7563]
[1730264050546,3.78773,2640.1,2639.8,0.7836609]
[1730264055277,3.78768,2640.2,2639.8,0.7836609]
[1730264055278,3.78802,2639.9,2639.8,0.7836609]
[1730264055560,3.78788,2640.0,2639.8,0.7836609]
[1730264061236,7.57586,2640.0,2639.8,0.7836609]
[1730264061568,3.78788,2640.0,2639.8,0.7836609]
[1730264063070,3.78776,2640.1,2639.8,0.7836609]
[1730264063383,3.78767,2640.2,2639.8,0.7836609]
[1730264066668,7.57537,2640.2,2639.8,0.7836609]
[1730264066867,8.332872,2640.2,2639.8,0.7836609]
[1730264067255,4.545172,2640.2,2639.8,0.7836609]
[1730264067663,3.78788,2640.0,2639.8,0.7836609]
[1730264068196,4.545172,2640.2,2639.8,0.7836609]
[1730264068197,3.78767,2640.2,2639.8,0.7836609]
[1730264068783,3.78775,2640.1,2639.8,0.7836609]
[1730264069585,3.78767,2640.2,2639.8,0.7836609]
[1730264070010,7.57536,2640.2,2639.8,0.7836609]
[1730264070210,3.78773,2640.1,2639.8,0.7836609]
[1730264074317,3.78796,2640.0,2639.8,0.0273609]
[1730264074621,7.57594,2640.0,2639.8,0.0273609]
[1730264075180,3.78796,2640.0,2639.8,0.0273609]
[1730264075893,3.78802,2639.9,2639.8,0.0273609]
[1730264078378,4.57842,2639.9,2639.8,0.0273609]
[1730264086615,3.78802,2639.9,2639.8,0.0273609]
[1730264100981,9.43741152,2640.0,2639.8,0.0273609]
[1730264101273,5.64945152,2640.0,2639.8,0.0273609]
[1730264101479,3.78802,2639.9,2639.8,0.0273609]
[1730264102335,4.80690715,2639.9,2639.8,0.0273609]
[1730264106572,3.78802,2639.9,2639.8,0.0273609]
[1730264106890,3.78781,2640.1,2639.8,0.8163609]
[1730264107084,3.78773,2640.1,2639.8,0.8163609]
[1730264108588,3.78769,2640.2,2639.8,0.8163609]
[1730264108792,3.78802,2639.9,2639.8,0.8163609]
[1730264110782,9.05837552,2640.1,2639.8,0.8163609]
[1730264110959,7.5756,2640.1,2639.8,0.8163609]
[1730264111160,3.78773,2640.1,2639.8,0.8163609]
[1730264111369,3.78791,2640.0,2639.8,0.8163609]
[1730264112775,3.78802,2639.9,2639.8,0.8163609]
[1730264114677,6.17666307,2639.9,2639.8,0.0273609]
[1730264119893,4.69388755,2639.9,2639.8,0.0273609]
[1730264120109,3.78802,2639.9,2639.8,0.0273609]
[1730264121117,3.78802,2639.9,2639.8,0.7849609]
[1730264121333,5.27079552,2639.9,2639.8,0.0273609]
[1730264124801,8.27079552,2639.9,2639.8,0.0273609]
[1730264125011,9.55642307,2639.9,2639.8,0.0273609]
[1730264127637,10.35402307,2639.9,2639.8,0.0273609]
[1730264135847,10.36402307,2639.9,2639.8,0.0273609]
[1730264136436,10.37402307,2639.9,2639.8,0.0273609]
[1730264160708,10.37402307,2639.9,2639.0,0.8273]
[1730264160709,6.78917,2639.1,2639.0,0.8273]
[1730264160879,8.27194552,2639.1,2639.0,0.8273]
[1730264161295,6.78917,2639.1,2639.0,0.8273]
[1730264161664,3.78947,2638.9,2638.8,0.7887]
[1730264161932,5.27224552,2638.9,2638.8,0.7887]
[1730264163184,3.78947,2638.9,2638.8,0.7887]
[1730264163584,6.79974,2638.7,2638.6,1.89425203]
[1730264163916,6.79974,2638.7,2637.5,11.17139]
[1730264163917,7.58137,2638.1,2637.5,11.17139]
[1730264164068,3.79078,2638.0,2637.5,3.79139]
[1730264164272,3.79078,2638.0,2637.5,4.77743812]
[1730264165813,3.79063,2638.1,2637.5,6.26019364]
[1730264166106,3.79063,2638.1,2637.6,3.79124]
[1730264166684,3.79063,2638.1,2637.7,0.7887]
[1730264166873,3.79063,2638.1,2637.8,0.7887]
[1730264167302,3.7904,2638.3,2637.9,0.7887]
[1730264167807,3.79046,2638.2,2637.9,0.7887]
[1730264168610,3.79061,2638.1,2637.9,0.7887]
[1730264169321,3.79075,2638.0,2637.9,0.7887]
[1730264176904,3.79075,2638.0,2637.4,0.7887]
[1730264177103,3.79127,2637.7,2637.4,0.7887]
[1730264177608,7.58222,2637.8,2637.4,0.7887]
[1730264177808,3.79106,2637.8,2637.4,0.7887]
[1730264180183,3.79118,2637.7,2637.4,0.7887]
[1730264180585,3.79129,2637.7,2637.4,0.7887]
[1730264181925,3.79106,2637.8,2637.4,0.7887]
[1730264182314,4.55196,2637.8,2637.4,0.7887]
[1730264182496,3.79125,2637.7,2637.4,0.7887]
[1730264182735,7.5822,2637.8,2637.4,0.7887]
[1730264183040,7.58218,2637.8,2637.4,0.7887]
[1730264183401,3.79119,2637.7,2637.4,0.7887]
[1730264183900,3.79134,2637.6,2637.4,0.7887]
[1730264184852,3.79118,2637.7,2637.4,0.7887]
[1730264185338,1.48277552,2637.9,2637.4,0.7887]
[1730264185544,3.79126,2637.7,2637.4,0.7887]
[1730264186239,4.69776655,2637.7,2637.3,0.7887]
[1730264186439,3.79126,2637.7,2637.3,0.7887]
[1730264186738,3.79143,2637.6,2637.3,0.7887]
[1730264187948,3.79149,2637.5,2637.3,0.7887]
[1730264188250,3.79161,2637.4,2637.3,0.7887]
[1730264189464,3.79161,2637.4,2637.2,0.1273609]
[1730264189465,3.79175,2637.3,2637.2,0.1273609]
[1730264193364,5.27452552,2637.3,2637.2,0.1273609]
[1730264193664,6.57482552,2637.3,2637.2,0.1273609]
[1730264194225,9.57482552,2637.3,2637.2,0.1273609]
[1730264194466,11.78944907,2637.3,2637.2,0.1273609]
[1730264196804,10.30667355,2637.3,2637.2,0.1273609]
[1730264197094,11.78944907,2637.3,2637.2,0.1273609]
[1730264200968,10.30667355,2637.3,2637.2,0.1273609]
[1730264201155,11.78944907,2637.3,2637.2,0.1273609]
[1730264201585,9.55637355,2637.3,2637.2,0.1273609]
[1730264201789,11.03914907,2637.3,2637.2,0.1273609]
[1730264204668,9.55637355,2637.3,2637.2,0.1273609]
[1730264204874,11.03914907,2637.3,2637.2,0.1273609]
[1730264206560,10.48914907,2637.3,2637.2,0.1273609]
[1730264207164,6.79175,2637.3,2637.2,0.1273609]
[1730264212690,6.79175,2637.3,2637.2,0.9364609]
[1730264213515,3.0,2637.3,2637.2,0.9364609]
[1730264213820,4.22,2637.5,2637.2,0.9364609]
[1730264214006,8.01147,2637.5,2637.2,1.40932199]
[1730264215130,4.22,2637.5,2637.2,1.40932199]
[1730264217346,4.22,2637.5,2637.2,0.9364609]
[1730264217347,8.01147,2637.5,2637.2,0.9364609]
[1730264217630,8.01147,2637.5,2637.2,0.1273609]
[1730264217631,3.79175,2637.3,2637.2,0.1273609]
[1730264221595,3.0,2637.4,2637.2,0.9352609]
[1730264221913,7.9737,2637.5,2637.2,0.9352609]
[1730264222225,7.9737,2637.5,2637.3,0.24180364]
[1730264223292,0.8323,2638.1,2637.4,0.8079]
[1730264223523,0.8323,2638.1,2637.4,3.86742105]
[1730264223524,3.79097,2637.9,2637.4,3.86742105]
[1730264223726,3.79097,2637.9,2637.6,0.8079]
[1730264224394,3.7906,2638.1,2637.6,0.8079]
[1730264224395,3.79076,2638.0,2637.6,0.8079]
[1730264224646,3.79076,2638.0,2637.7,0.60821255]
[1730264226335,3.79039,2638.3,2637.8,0.8079]
[1730264226543,3.7907,2638.1,2637.8,0.8079]
[1730264227207,7.58143,2638.1,2637.8,0.8079]
[1730264227409,3.79077,2638.0,2637.8,0.8079]
[1730264227815,3.7907,2638.1,2637.8,0.8079]
[1730264227816,1.48277552,2638.2,2637.8,0.8079]
[1730264228036,7.58132,2638.1,2637.8,0.8079]
[1730264228242,3.79063,2638.1,2637.8,0.8079]
[1730264228847,5.27327552,2638.2,2637.8,0.8079]
[1730264229008,3.79064,2638.1,2637.8,1.32864226]
[1730264229212,3.79064,2638.1,2637.8,0.8079]
[1730264230639,3.79039,2638.3,2637.8,0.8079]
[1730264230850,13.28877552,2638.4,2637.8,0.8079]
[1730264230851,4.21,2638.4,2637.8,0.8079]
[1730264231142,4.21,2638.4,2637.7,5.88208807]
[1730264231143,4.21,2638.4,2638.2,0.8079]
[1730264231344,3.78982,2638.7,2638.2,0.8079]
[1730264231527,3.78988,2638.6,2638.2,0.8079]
[1730264232210,3.78982,2638.7,2638.2,0.8079]
[1730264232539,0.60332394,2639.4,2638.2,0.8079]
[1730264232540,3.78951,2638.9,2638.4,0.8079]
[1730264232739,3.78951,2638.9,2638.5,0.8079]
[1730264233096,3.78925,2639.1,2638.5,1.48277552]
[1730264233315,3.78932,2639.0,2638.6,0.8079]
[1730264234107,7.57871,2639.0,2638.6,0.8079]
[1730264234312,3.78932,2639.0,2638.6,0.8079]
[1730264234714,7.57875,2639.0,2638.6,1.267691]
[1730264234949,3.78932,2639.0,2638.6,1.267691]
[1730264235840,4.21,2639.2,2638.9,3.78937]
[1730264236140,3.78874,2639.4,2639.0,0.8079]
[1730264236697,3.78874,2639.4,2639.0,1.60040878]
[1730264236950,3.78898,2639.3,2639.0,0.8079]
[1730264237099,0.8323,2639.3,2638.4,0.8079]
[1730264237300,0.8323,2639.3,2638.4,4.59797]
[1730264237505,0.8323,2639.3,2638.4,8.38806]
[1730264237506,3.78902,2639.2,2638.4,8.38806]
[1730264237742,3.78939,2639.0,2638.4,5.77055778]
[1730264237942,3.78957,2638.9,2638.4,1.98048778]
[1730264238136,3.78939,2639.0,2638.4,5.77057778]
[1730264238485,3.78939,2639.0,2638.4,1.98048778]
[1730264238486,3.78946,2638.9,2638.4,1.98048778]
[1730264239141,3.78946,2638.9,2638.4,5.77063778]
[1730264240271,7.5788,2639.0,2638.4,5.77063778]
[1730264240575,3.78947,2638.9,2638.4,5.77063778]
[1730264240772,3.78939,2639.0,2638.4,9.56078778]
[1730264241280,3.78939,2639.0,2638.4,5.77063778]
[1730264241441,3.78939,2639.0,2638.4,4.59805]
[1730264241772,3.78946,2638.9,2638.4,4.59805]
[1730264242373,3.78945,2638.9,2638.4,4.59805]
[1730264243279,3.78945,2638.9,2638.4,8.3881]
[1730264244452,3.7893,2639.1,2638.4,8.3881]
[1730264244655,3.7893,2639.1,2638.4,9.22791]
[1730264245349,3.78933,2639.0,2638.4,9.22791]